[Event "*** Titled Tuesday Blitz"]
[Site "Chess.com"]
[Date "2019.12.03"]
[Round "8"]
[White "BvsN"]
[Black "Winehouse83"]
[Result "0-1"]
[WhiteElo "2372"]
[BlackElo "2524"]
[TimeControl "180+2"]
[EndTime "14:53:36 PST"]
[Termination "Winehouse83 won on time"]

1. d4 {[%clk 0:03:01.9]} 1... Nf6 {[%clk 0:03:00.9]} 2. c4 {[%clk 0:03:01.7]}
2... g6 {[%clk 0:03:02.1]} 3. Nc3 {[%clk 0:03:02.2]} 3... Bg7 {[%clk 0:03:03.3]}
4. e4 {[%clk 0:03:02.6]} 4... d6 {[%clk 0:03:04.9]} 5. Nge2 {[%clk 0:03:03.7]}
5... O-O {[%clk 0:03:06.4]} 6. f3 {[%clk 0:03:05]} 6... c6 {[%clk 0:03:03.1]} 7.
Be3 {[%clk 0:03:02.9]} 7... a6 {[%clk 0:03:04.1]} 8. h4 {[%clk 0:03:02.9]} 8...
b5 {[%clk 0:02:58.1]} 9. h5 {[%clk 0:03:03.7]} 9... bxc4 {[%clk 0:02:55.9]} 10.
hxg6 {[%clk 0:03:04.3]} 10... fxg6 {[%clk 0:02:56.9]} 11. Nf4 {[%clk 0:02:47.6]}
11... d5 {[%clk 0:02:56.2]} 12. Qd2 {[%clk 0:02:37.9]} 12... g5 {[%clk
0:02:33.8]} 13. Nh5 {[%clk 0:02:27.7]} 13... Nxh5 {[%clk 0:02:34.8]} 14. Rxh5
{[%clk 0:02:28.5]} 14... h6 {[%clk 0:02:36]} 15. O-O-O {[%clk 0:02:18.5]} 15...
a5 {[%clk 0:02:26.5]} 16. Be2 {[%clk 0:02:16.8]} 16... Rf6 {[%clk 0:02:06.1]}
17. f4 {[%clk 0:01:55.7]} 17... gxf4 {[%clk 0:02:06.6]} 18. Bxf4 {[%clk
0:01:53.7]} 18... Qf8 {[%clk 0:02:07.6]} 19. Be5 {[%clk 0:01:49.5]} 19... e6
{[%clk 0:02:02.9]} 20. Bxf6 {[%clk 0:01:46.2]} 20... Qxf6 {[%clk 0:02:04.8]} 21.
e5 {[%clk 0:01:36.6]} 21... Qg6 {[%clk 0:02:03.4]} 22. g4 {[%clk 0:01:26.4]}
22... a4 {[%clk 0:01:55.7]} 23. a3 {[%clk 0:01:26.8]} 23... c5 {[%clk 0:01:54]}
24. dxc5 {[%clk 0:01:16.9]} 24... Nc6 {[%clk 0:01:49]} 25. Nxd5 {[%clk
0:00:57.9]} 25... exd5 {[%clk 0:01:48.3]} 26. Qxd5+ {[%clk 0:00:59]} 26... Be6
{[%clk 0:01:49]} 27. Qxc6 {[%clk 0:00:55.4]} 27... Rc8 {[%clk 0:01:48.1]} 28.
Qd6 {[%clk 0:00:45.7]} 28... Bf8 {[%clk 0:01:30.9]} 29. Qd2 {[%clk 0:00:34.3]}
29... c3 {[%clk 0:01:31.6]} 30. Qd3 {[%clk 0:00:24.4]} 30... cxb2+ {[%clk
0:01:29.2]} 31. Kxb2 {[%clk 0:00:20.4]} 31... Rb8+ {[%clk 0:01:26.6]} 32. Kc1
{[%clk 0:00:19.6]} 32... Qg7 {[%clk 0:01:19.9]} 33. Qc3 {[%clk 0:00:15.6]} 33...
Qb7 {[%clk 0:01:03.1]} 34. Qc2 {[%clk 0:00:10.1]} 34... Kh8 {[%clk 0:00:46.3]}
35. Rdh1 {[%clk 0:00:06.8]} 35... Qg7 {[%clk 0:00:23.1]} 36. Rxh6+ {[%clk
0:00:07.1]} 36... Qxh6+ {[%clk 0:00:23.6]} 37. Rxh6+ {[%clk 0:00:05.8]} 37...
Bxh6+ {[%clk 0:00:24.7]} 38. Kd1 {[%clk 0:00:07]} 38... Bb3 {[%clk 0:00:25.7]}
39. e6 {[%clk 0:00:02]} 39... Rd8+ {[%clk 0:00:24.9]} 0-1

[Event "*** Titled Tuesday Blitz"]
[Site "Chess.com"]
[Date "2019.12.03"]
[Round "8"]
[White "piscatorox"]
[Black "pouya21"]
[Result "0-1"]
[WhiteElo "2293"]
[BlackElo "2738"]
[TimeControl "180+2"]
[EndTime "14:53:38 PST"]
[Termination "pouya21 won by resignation"]

1. e4 {[%clk 0:03:01.9]} 1... c5 {[%clk 0:02:58.9]} 2. Nf3 {[%clk 0:03:01.8]}
2... d6 {[%clk 0:03:00.1]} 3. d4 {[%clk 0:03:02.7]} 3... cxd4 {[%clk 0:03:02]}
4. Qxd4 {[%clk 0:03:03.6]} 4... Nf6 {[%clk 0:03:00.6]} 5. h3 {[%clk 0:02:57.5]}
5... Nc6 {[%clk 0:02:58.6]} 6. Bb5 {[%clk 0:02:49.3]} 6... Qa5+ {[%clk
0:02:50.2]} 7. Nc3 {[%clk 0:02:44.7]} 7... Qxb5 {[%clk 0:02:51.4]} 8. Qxf6
{[%clk 0:02:16.8]} 8... gxf6 {[%clk 0:02:35.6]} 9. Nxb5 {[%clk 0:02:16.4]} 9...
Kd8 {[%clk 0:02:37.1]} 10. Be3 {[%clk 0:01:50.2]} 10... h5 {[%clk 0:02:36.2]}
11. Ke2 {[%clk 0:01:20.4]} 11... Be6 {[%clk 0:02:32]} 12. b3 {[%clk 0:01:17.2]}
12... Bd7 {[%clk 0:02:27.8]} 13. c4 {[%clk 0:01:16.5]} 13... Bh6 {[%clk
0:02:17.1]} 14. Rad1 {[%clk 0:01:03.8]} 14... Bxe3 {[%clk 0:02:15.1]} 15. Kxe3
{[%clk 0:01:03.5]} 15... a6 {[%clk 0:02:07.5]} 16. Nbd4 {[%clk 0:01:03.2]} 16...
Ne5 {[%clk 0:02:08.5]} 17. Nxe5 {[%clk 0:01:02.3]} 17... fxe5 {[%clk 0:02:09.8]}
18. Ne2 {[%clk 0:01:03.3]} 18... Rc8 {[%clk 0:02:09.7]} 19. Nc3 {[%clk
0:00:55.6]} 19... Rg8 {[%clk 0:02:02.6]} 20. Nd5 {[%clk 0:00:47.6]} 20... Rxg2
{[%clk 0:01:47.7]} 21. Rdg1 {[%clk 0:00:40.4]} 21... Rg6 {[%clk 0:01:46]} 22. f4
{[%clk 0:00:30.7]} 22... exf4+ {[%clk 0:01:24.7]} 23. Nxf4 {[%clk 0:00:29.5]}
23... Rxg1 {[%clk 0:01:25.7]} 24. Rxg1 {[%clk 0:00:30.2]} 24... e6 {[%clk
0:01:06.8]} 25. Nxh5 {[%clk 0:00:24.6]} 25... Ke7 {[%clk 0:01:08]} 26. Nf4
{[%clk 0:00:24.2]} 26... b5 {[%clk 0:01:09.1]} 27. cxb5 {[%clk 0:00:22.3]} 27...
axb5 {[%clk 0:01:11]} 28. Rd1 {[%clk 0:00:19.7]} 28... b4 {[%clk 0:01:05.9]} 29.
h4 {[%clk 0:00:19.7]} 29... Rh8 {[%clk 0:00:52.6]} 30. h5 {[%clk 0:00:19.1]}
30... Bc6 {[%clk 0:00:52.5]} 31. Rh1 {[%clk 0:00:18.7]} 31... Rh6 {[%clk
0:00:50.9]} 32. Nd3 {[%clk 0:00:19.2]} 32... f5 {[%clk 0:00:48.3]} 33. Nxb4
{[%clk 0:00:20.1]} 33... Bxe4 {[%clk 0:00:49.6]} 34. Rh4 {[%clk 0:00:20.4]}
34... Kf6 {[%clk 0:00:49.6]} 35. a4 {[%clk 0:00:21.2]} 35... Kg5 {[%clk
0:00:50.8]} 36. Rh2 {[%clk 0:00:22.1]} 36... Rxh5 {[%clk 0:00:47.9]} 37. Rxh5+
{[%clk 0:00:22.9]} 37... Kxh5 {[%clk 0:00:49.8]} 38. a5 {[%clk 0:00:24.2]} 38...
Kg4 {[%clk 0:00:51.1]} 39. Na6 {[%clk 0:00:23.9]} 39... Bh1 {[%clk 0:00:39.9]}
40. Nc7 {[%clk 0:00:23.7]} 40... e5 {[%clk 0:00:40.8]} 41. b4 {[%clk 0:00:22.5]}
41... Kg3 {[%clk 0:00:41.8]} 42. Ke2 {[%clk 0:00:19.1]} 42... f4 {[%clk
0:00:42.8]} 43. Kf1 {[%clk 0:00:19.8]} 43... Bg2+ {[%clk 0:00:41.7]} 44. Ke1
{[%clk 0:00:18.1]} 44... f3 {[%clk 0:00:42.9]} 45. Ne6 {[%clk 0:00:17.1]} 45...
f2+ {[%clk 0:00:44.1]} 0-1

[Event "*** Titled Tuesday Blitz"]
[Site "Chess.com"]
[Date "2019.12.03"]
[Round "8"]
[White "joshdaruca"]
[Black "Man-Chuk"]
[Result "0-1"]
[WhiteElo "2716"]
[BlackElo "2921"]
[TimeControl "180+2"]
[EndTime "14:53:45 PST"]
[Termination "Man-Chuk won by resignation"]

1. Nf3 {[%clk 0:03:01.9]} 1... d5 {[%clk 0:03:00]} 2. g3 {[%clk 0:03:01.6]} 2...
e6 {[%clk 0:03:01.3]} 3. Bg2 {[%clk 0:03:01.6]} 3... Nf6 {[%clk 0:03:02.5]} 4.
c4 {[%clk 0:03:01.5]} 4... dxc4 {[%clk 0:03:04.4]} 5. Qa4+ {[%clk 0:02:59.7]}
5... c6 {[%clk 0:03:03.7]} 6. Qxc4 {[%clk 0:02:56.4]} 6... b5 {[%clk 0:03:04.1]}
7. Qb3 {[%clk 0:02:50.8]} 7... Bb7 {[%clk 0:03:05.2]} 8. O-O {[%clk 0:02:43.3]}
8... Qb6 {[%clk 0:02:59.7]} 9. d3 {[%clk 0:02:31]} 9... c5 {[%clk 0:02:52.6]}
10. a4 {[%clk 0:02:31.4]} 10... a6 {[%clk 0:02:51.1]} 11. Nc3 {[%clk 0:02:28.6]}
11... b4 {[%clk 0:02:34.4]} 12. a5 {[%clk 0:02:27.6]} 12... Qd8 {[%clk
0:02:29.4]} 13. Nb1 {[%clk 0:02:22.8]} 13... Nc6 {[%clk 0:02:17.7]} 14. Nbd2
{[%clk 0:02:17.5]} 14... Bd6 {[%clk 0:02:10.7]} 15. Nc4 {[%clk 0:02:11.7]} 15...
O-O {[%clk 0:02:11.5]} 16. e4 {[%clk 0:01:58.4]} 16... Bc7 {[%clk 0:02:01.2]}
17. Be3 {[%clk 0:01:59.2]} 17... Nd7 {[%clk 0:02:00.7]} 18. Qa4 {[%clk 0:01:56]}
18... Qe7 {[%clk 0:01:57.5]} 19. Rfc1 {[%clk 0:01:48.6]} 19... Rfd8 {[%clk
0:01:50.7]} 20. Bg5 {[%clk 0:01:40]} 20... f6 {[%clk 0:01:50]} 21. Be3 {[%clk
0:01:41.6]} 21... Rab8 {[%clk 0:01:43.4]} 22. Bf1 {[%clk 0:01:41.2]} 22... Ba8
{[%clk 0:01:43.7]} 23. Nfd2 {[%clk 0:01:42]} 23... Rb5 {[%clk 0:01:42.6]} 24.
Nb3 {[%clk 0:01:43.5]} 24... e5 {[%clk 0:01:32.8]} 25. Nb6 {[%clk 0:01:34.6]}
25... Bxb6 {[%clk 0:01:21.1]} 26. axb6 {[%clk 0:01:32.5]} 26... Bb7 {[%clk
0:01:20.8]} 27. d4 {[%clk 0:01:12.9]} 27... exd4 {[%clk 0:01:18.5]} 28. Bf4
{[%clk 0:01:10.6]} 28... Nxb6 {[%clk 0:01:14.4]} 29. Qa2 {[%clk 0:01:10.1]}
29... c4 {[%clk 0:01:06.1]} 30. Rxc4 {[%clk 0:01:07.9]} 30... Nxc4 {[%clk
0:01:06.3]} 31. Bxc4+ {[%clk 0:01:08.4]} 31... Kh8 {[%clk 0:01:06.8]} 32. Bxb5
{[%clk 0:01:09.8]} 32... axb5 {[%clk 0:01:08.4]} 33. f3 {[%clk 0:00:51.5]} 33...
g5 {[%clk 0:01:06.4]} 34. Bd2 {[%clk 0:00:30.3]} 34... Ne5 {[%clk 0:01:06.3]}
35. Qa7 {[%clk 0:00:29.2]} 35... Nxf3+ {[%clk 0:01:05.2]} 36. Kf2 {[%clk
0:00:28.5]} 36... Nxd2 {[%clk 0:00:40]} 37. Nxd2 {[%clk 0:00:27.5]} 37... Ra8
{[%clk 0:00:41]} 38. Qxa8+ {[%clk 0:00:25.5]} 38... Bxa8 {[%clk 0:00:42.9]} 39.
Rxa8+ {[%clk 0:00:27]} 39... Kg7 {[%clk 0:00:43.9]} 40. Ke2 {[%clk 0:00:21.4]}
40... Qc7 {[%clk 0:00:38.7]} 41. Ra1 {[%clk 0:00:14.4]} 41... Qc2 {[%clk
0:00:35.2]} 42. b3 {[%clk 0:00:15.4]} 42... d3+ {[%clk 0:00:34.3]} 43. Ke3
{[%clk 0:00:15]} 43... Qc5+ {[%clk 0:00:35.6]} 44. Kxd3 {[%clk 0:00:15]} 44...
Qc3+ {[%clk 0:00:36.8]} 45. Ke2 {[%clk 0:00:15.8]} 45... Qxa1 {[%clk 0:00:38.7]}
0-1

[Event "*** Titled Tuesday Blitz"]
[Site "Chess.com"]
[Date "2019.12.03"]
[Round "8"]
[White "scrapnel"]
[Black "Zq1"]
[Result "1/2-1/2"]
[WhiteElo "2688"]
[BlackElo "2542"]
[TimeControl "180+2"]
[EndTime "14:53:46 PST"]
[Termination "Game drawn by agreement"]

1. Nf3 {[%clk 0:03:01.9]} 1... d5 {[%clk 0:02:59.9]} 2. d4 {[%clk 0:03:01.9]}
2... Nf6 {[%clk 0:03:00.7]} 3. c4 {[%clk 0:03:02.6]} 3... e6 {[%clk 0:03:01.5]}
4. Nc3 {[%clk 0:02:58.6]} 4... Be7 {[%clk 0:03:02.6]} 5. Bg5 {[%clk 0:02:56.6]}
5... h6 {[%clk 0:03:02.3]} 6. Bxf6 {[%clk 0:02:51.6]} 6... Bxf6 {[%clk
0:03:03.1]} 7. e3 {[%clk 0:02:53]} 7... O-O {[%clk 0:03:02.1]} 8. Rc1 {[%clk
0:02:53.1]} 8... dxc4 {[%clk 0:03:01.6]} 9. Bxc4 {[%clk 0:02:53.2]} 9... Nd7
{[%clk 0:03:01.4]} 10. O-O {[%clk 0:02:52.4]} 10... c5 {[%clk 0:03:02.1]} 11.
Ne4 {[%clk 0:02:29.6]} 11... cxd4 {[%clk 0:03:01.6]} 12. Nxd4 {[%clk 0:02:23.9]}
12... Bxd4 {[%clk 0:02:51.1]} 13. Qxd4 {[%clk 0:02:23.6]} 13... Nb6 {[%clk
0:02:51.7]} 14. Nd6 {[%clk 0:02:00.3]} 14... Nxc4 {[%clk 0:02:38.5]} 15. Rxc4
{[%clk 0:01:58.6]} 15... Qb6 {[%clk 0:02:35.4]} 16. Qxb6 {[%clk 0:01:44]} 16...
axb6 {[%clk 0:02:35.7]} 17. Rc7 {[%clk 0:01:37.6]} 17... e5 {[%clk 0:01:33.5]}
18. a3 {[%clk 0:01:32.8]} 18... Be6 {[%clk 0:01:21]} 19. Rxb7 {[%clk 0:01:05.2]}
19... Rab8 {[%clk 0:01:18.7]} 20. Rxb8 {[%clk 0:01:02]} 20... Rxb8 {[%clk
0:01:19.3]} 21. Rd1 {[%clk 0:00:51.9]} 21... Kf8 {[%clk 0:01:13.5]} 22. Nb5
{[%clk 0:00:39]} 22... Rc8 {[%clk 0:01:09]} 23. Nc3 {[%clk 0:00:39.6]} 23... Ke7
{[%clk 0:01:09.4]} 24. f3 {[%clk 0:00:39.2]} 24... f5 {[%clk 0:01:06.5]} 25. Kf2
{[%clk 0:00:40]} 25... f4 {[%clk 0:01:02.7]} 26. exf4 {[%clk 0:00:39.7]} 26...
exf4 {[%clk 0:01:03.4]} 27. Rd4 {[%clk 0:00:41]} 27... g5 {[%clk 0:01:02.6]} 28.
Rb4 {[%clk 0:00:40.4]} 28... Rc6 {[%clk 0:01:02.4]} 29. h4 {[%clk 0:00:40.8]}
29... Kf6 {[%clk 0:00:50.4]} 30. hxg5+ {[%clk 0:00:40.8]} 30... hxg5 {[%clk
0:00:50.4]} 31. Rb5 {[%clk 0:00:33.2]} 31... Kg6 {[%clk 0:00:50]} 32. a4 {[%clk
0:00:21.7]} 32... Rd6 {[%clk 0:00:43.5]} 33. Rxg5+ {[%clk 0:00:18.4]} 33... Kxg5
{[%clk 0:00:39]} 34. Ne4+ {[%clk 0:00:19.4]} 34... Kf5 {[%clk 0:00:40.3]} 35.
Nxd6+ {[%clk 0:00:20.3]} 35... Ke5 {[%clk 0:00:41.7]} 36. Ne4 {[%clk 0:00:11.9]}
36... Kd4 {[%clk 0:00:36.8]} 37. b4 {[%clk 0:00:11]} 37... Kc4 {[%clk
0:00:32.5]} 38. a5 {[%clk 0:00:11.7]} 38... bxa5 {[%clk 0:00:31.7]} 39. bxa5
{[%clk 0:00:12.2]} 39... Kb5 {[%clk 0:00:33.2]} 40. a6 {[%clk 0:00:11.7]} 40...
Kb6 {[%clk 0:00:30.6]} 41. Nc5 {[%clk 0:00:08.2]} 41... Kxc5 {[%clk 0:00:22.5]}
42. a7 {[%clk 0:00:08.5]} 42... Bd5 {[%clk 0:00:23.4]} 43. g3 {[%clk 0:00:09.9]}
43... fxg3+ {[%clk 0:00:24]} 44. Kxg3 {[%clk 0:00:11]} 44... Kb6 {[%clk
0:00:24.9]} 45. f4 {[%clk 0:00:11.9]} 45... Kxa7 {[%clk 0:00:22.8]} 46. f5
{[%clk 0:00:11.4]} 1/2-1/2

[Event "*** Titled Tuesday Blitz"]
[Site "Chess.com"]
[Date "2019.12.03"]
[Round "8"]
[White "visa"]
[Black "Al_Shima"]
[Result "0-1"]
[WhiteElo "2265"]
[BlackElo "2459"]
[TimeControl "180+2"]
[EndTime "14:53:46 PST"]
[Termination "Al_Shima won by resignation"]

1. e4 {[%clk 0:03:01.9]} 1... d5 {[%clk 0:03:00.2]} 2. exd5 {[%clk 0:03:02.6]}
2... Nf6 {[%clk 0:03:00.8]} 3. Bb5+ {[%clk 0:03:02.7]} 3... Bd7 {[%clk
0:03:01.4]} 4. Bc4 {[%clk 0:03:04]} 4... Bg4 {[%clk 0:03:02.2]} 5. f3 {[%clk
0:03:04.8]} 5... Bc8 {[%clk 0:03:03.6]} 6. Nc3 {[%clk 0:03:01.4]} 6... Nbd7
{[%clk 0:03:04.8]} 7. d3 {[%clk 0:02:54.4]} 7... Nb6 {[%clk 0:03:06.2]} 8. Nge2
{[%clk 0:02:53.9]} 8... Nfxd5 {[%clk 0:03:06.2]} 9. Nxd5 {[%clk 0:02:51.5]} 9...
Nxd5 {[%clk 0:03:08.1]} 10. O-O {[%clk 0:02:50.2]} 10... e6 {[%clk 0:03:09.3]}
11. Kh1 {[%clk 0:02:37.5]} 11... Bd6 {[%clk 0:03:07.9]} 12. f4 {[%clk
0:02:24.5]} 12... Qh4 {[%clk 0:03:01]} 13. Qe1 {[%clk 0:02:04.8]} 13... Qxe1
{[%clk 0:02:48.2]} 14. Rxe1 {[%clk 0:02:05.2]} 14... O-O {[%clk 0:02:48.9]} 15.
a3 {[%clk 0:01:51.8]} 15... b6 {[%clk 0:02:45.2]} 16. f5 {[%clk 0:01:46.5]}
16... c6 {[%clk 0:02:43.5]} 17. fxe6 {[%clk 0:01:42.5]} 17... Bxe6 {[%clk
0:02:39.9]} 18. Nd4 {[%clk 0:01:43.5]} 18... Bd7 {[%clk 0:02:38.5]} 19. Bd2
{[%clk 0:01:35.4]} 19... Rae8 {[%clk 0:02:31.5]} 20. Rxe8 {[%clk 0:01:35.8]}
20... Rxe8 {[%clk 0:02:32.3]} 21. Re1 {[%clk 0:01:37.2]} 21... Rxe1+ {[%clk
0:02:30.4]} 22. Bxe1 {[%clk 0:01:39.1]} 22... Be5 {[%clk 0:02:31.3]} 23. Bf2
{[%clk 0:01:26.4]} 23... Ne7 {[%clk 0:02:16.9]} 24. c3 {[%clk 0:01:20.7]} 24...
Kf8 {[%clk 0:02:13.8]} 25. Nf3 {[%clk 0:01:20.8]} 25... Bf6 {[%clk 0:02:13.6]}
26. d4 {[%clk 0:01:20.2]} 26... Bg4 {[%clk 0:02:03.7]} 27. Kg1 {[%clk
0:01:15.9]} 27... Bxf3 {[%clk 0:02:01.2]} 28. gxf3 {[%clk 0:01:16.6]} 28... Bg5
{[%clk 0:02:02.5]} 29. a4 {[%clk 0:00:27.7]} 29... Bc1 {[%clk 0:02:00.5]} 30.
Be1 {[%clk 0:00:28.7]} 30... Bxb2 {[%clk 0:02:00.3]} 31. Kf2 {[%clk 0:00:30]}
31... Bc1 {[%clk 0:01:55.7]} 32. Ke2 {[%clk 0:00:30.3]} 32... Bf4 {[%clk
0:01:55.9]} 33. h3 {[%clk 0:00:24.9]} 33... Nd5 {[%clk 0:01:52.5]} 34. Kd3
{[%clk 0:00:21.5]} 34... f5 {[%clk 0:01:51.5]} 35. Bxd5 {[%clk 0:00:21.4]} 35...
cxd5 {[%clk 0:01:52.4]} 36. c4 {[%clk 0:00:23.3]} 36... dxc4+ {[%clk 0:01:36.9]}
37. Kxc4 {[%clk 0:00:25.2]} 37... Ke7 {[%clk 0:01:37.4]} 38. Kb5 {[%clk
0:00:24.4]} 38... Be3 {[%clk 0:01:34.9]} 39. Bc3 {[%clk 0:00:16]} 39... Kd6
{[%clk 0:01:21.2]} 40. Ka6 {[%clk 0:00:17.1]} 40... g5 {[%clk 0:01:00.8]} 41.
Kxa7 {[%clk 0:00:17.9]} 41... Kc6 {[%clk 0:01:01.3]} 42. Kb8 {[%clk 0:00:12.7]}
42... h5 {[%clk 0:01:01.6]} 43. Kc8 {[%clk 0:00:12.5]} 43... h4 {[%clk
0:01:01.5]} 44. Kd8 {[%clk 0:00:05.5]} 44... g4 {[%clk 0:00:36.4]} 45. fxg4
{[%clk 0:00:07.4]} 45... fxg4 {[%clk 0:00:37.4]} 46. hxg4 {[%clk 0:00:08.3]}
46... h3 {[%clk 0:00:38.5]} 47. d5+ {[%clk 0:00:08.5]} 47... Kxd5 {[%clk
0:00:39]} 48. Be1 {[%clk 0:00:09.1]} 48... h2 {[%clk 0:00:39.7]} 0-1

[Event "*** Titled Tuesday Blitz"]
[Site "Chess.com"]
[Date "2019.12.03"]
[Round "8"]
[White "Vyacheslav_N"]
[Black "mitrabhaa"]
[Result "1-0"]
[WhiteElo "2543"]
[BlackElo "2616"]
[TimeControl "180+2"]
[EndTime "14:53:53 PST"]
[Termination "Vyacheslav_N won on time"]

1. e4 {[%clk 0:03:01.9]} 1... c6 {[%clk 0:03:00.9]} 2. d4 {[%clk 0:02:59.3]}
2... d5 {[%clk 0:03:02.8]} 3. Nd2 {[%clk 0:02:55.9]} 3... dxe4 {[%clk
0:03:04.7]} 4. Nxe4 {[%clk 0:02:57.8]} 4... Nf6 {[%clk 0:03:06.6]} 5. Nxf6+
{[%clk 0:02:58.5]} 5... exf6 {[%clk 0:03:08.5]} 6. c3 {[%clk 0:02:54.3]} 6...
Bd6 {[%clk 0:03:10.4]} 7. Bd3 {[%clk 0:02:54.9]} 7... O-O {[%clk 0:03:08.9]} 8.
Qc2 {[%clk 0:02:56.4]} 8... Re8+ {[%clk 0:03:09.9]} 9. Ne2 {[%clk 0:02:57.9]}
9... h5 {[%clk 0:03:11.8]} 10. Be3 {[%clk 0:02:57.4]} 10... Nd7 {[%clk 0:03:10]}
11. O-O-O {[%clk 0:02:58.9]} 11... Nb6 {[%clk 0:03:07.8]} 12. c4 {[%clk
0:02:59.8]} 12... Bc7 {[%clk 0:03:06.8]} 13. Kb1 {[%clk 0:02:59.1]} 13... a5
{[%clk 0:03:06.2]} 14. Bh7+ {[%clk 0:02:53.2]} 14... Kh8 {[%clk 0:03:03.2]} 15.
Bd3 {[%clk 0:02:53.7]} 15... a4 {[%clk 0:03:03.6]} 16. Ng3 {[%clk 0:02:53.4]}
16... h4 {[%clk 0:03:03.3]} 17. Nf5 {[%clk 0:02:54.2]} 17... Bxf5 {[%clk
0:03:04.6]} 18. Bxf5 {[%clk 0:02:56.1]} 18... Nc8 {[%clk 0:03:06.2]} 19. g3
{[%clk 0:02:55.4]} 19... Nd6 {[%clk 0:03:07.1]} 20. Bd3 {[%clk 0:02:56.3]} 20...
b5 {[%clk 0:03:08.3]} 21. c5 {[%clk 0:02:56.1]} 21... Nc8 {[%clk 0:03:07.8]} 22.
Be4 {[%clk 0:02:57.4]} 22... Ne7 {[%clk 0:03:08.6]} 23. d5 {[%clk 0:02:45.6]}
23... Nxd5 {[%clk 0:03:06]} 24. Bxd5 {[%clk 0:02:46.2]} 24... cxd5 {[%clk
0:03:02.8]} 25. Qf5 {[%clk 0:02:47.8]} 25... Re5 {[%clk 0:03:03.5]} 26. Qh3
{[%clk 0:02:46.8]} 26... Re4 {[%clk 0:03:03.6]} 27. Qf5 {[%clk 0:02:46]} 27...
Be5 {[%clk 0:03:01.5]} 28. Qxe4 {[%clk 0:02:08.5]} 28... dxe4 {[%clk 0:02:58]}
29. Rxd8+ {[%clk 0:02:09.6]} 29... Rxd8 {[%clk 0:02:59.9]} 30. gxh4 {[%clk
0:02:10.4]} 30... Kg8 {[%clk 0:02:56.2]} 31. c6 {[%clk 0:02:08.2]} 31... Kf8
{[%clk 0:02:56.8]} 32. h5 {[%clk 0:01:58.5]} 32... Ke7 {[%clk 0:02:57.2]} 33. h6
{[%clk 0:01:59.3]} 33... g5 {[%clk 0:02:57.4]} 34. h4 {[%clk 0:01:58.6]} 34...
g4 {[%clk 0:02:58.6]} 35. h7 {[%clk 0:01:49]} 35... f5 {[%clk 0:02:56.8]} 36.
Rc1 {[%clk 0:01:38.9]} 36... f4 {[%clk 0:02:48.7]} 37. c7 {[%clk 0:01:34.1]}
37... Rc8 {[%clk 0:02:32.3]} 38. Bxf4 {[%clk 0:01:22.8]} 38... Bxf4 {[%clk
0:02:17.5]} 39. h8=Q {[%clk 0:01:23.2]} 39... Rxh8 {[%clk 0:02:18]} 40. c8=Q
{[%clk 0:01:24.3]} 40... Rxc8 {[%clk 0:02:18.5]} 41. Rxc8 {[%clk 0:01:25.2]}
41... f5 {[%clk 0:02:19.6]} 42. h5 {[%clk 0:01:20.5]} 42... e3 {[%clk
0:02:19.1]} 43. fxe3 {[%clk 0:01:15]} 43... Bxe3 {[%clk 0:02:20.2]} 44. Kc2
{[%clk 0:01:15.6]} 44... Kf7 {[%clk 0:02:18.2]} 45. Kd3 {[%clk 0:01:11.7]} 45...
f4 {[%clk 0:02:19.3]} 46. h6 {[%clk 0:01:10.3]} 46... g3 {[%clk 0:02:14.2]} 47.
h7 {[%clk 0:01:09.2]} 47... g2 {[%clk 0:02:15.7]} 48. Rg8 {[%clk 0:01:09.6]} 1-0

[Event "*** Titled Tuesday Blitz"]
[Site "Chess.com"]
[Date "2019.12.03"]
[Round "8"]
[White "Jbd735"]
[Black "IMRosen"]
[Result "0-1"]
[WhiteElo "2436"]
[BlackElo "2592"]
[TimeControl "180+2"]
[EndTime "14:54:10 PST"]
[Termination "IMRosen won on time"]

1. d4 {[%clk 0:03:01.9]} 1... d5 {[%clk 0:02:59.6]} 2. c3 {[%clk 0:03:01]} 2...
Nf6 {[%clk 0:02:59.8]} 3. Bf4 {[%clk 0:03:00.4]} 3... e6 {[%clk 0:02:54]} 4. e3
{[%clk 0:02:59.4]} 4... c5 {[%clk 0:02:55.5]} 5. Nd2 {[%clk 0:02:56.8]} 5... Nc6
{[%clk 0:02:56.8]} 6. Ngf3 {[%clk 0:02:56.9]} 6... cxd4 {[%clk 0:02:57.9]} 7.
exd4 {[%clk 0:02:57.5]} 7... Nh5 {[%clk 0:02:59.6]} 8. Be3 {[%clk 0:02:55.4]}
8... Bd6 {[%clk 0:03:00.1]} 9. Bd3 {[%clk 0:02:55.1]} 9... Nf4 {[%clk
0:02:57.9]} 10. Bxf4 {[%clk 0:02:51.5]} 10... Bxf4 {[%clk 0:02:59.8]} 11. O-O
{[%clk 0:02:48.3]} 11... O-O {[%clk 0:03:00.5]} 12. Re1 {[%clk 0:02:49.2]} 12...
b6 {[%clk 0:02:49.6]} 13. Qe2 {[%clk 0:02:48.4]} 13... Bb7 {[%clk 0:02:49.7]}
14. Ne5 {[%clk 0:02:40.4]} 14... Nxe5 {[%clk 0:02:45.4]} 15. dxe5 {[%clk
0:02:42.3]} 15... Bh6 {[%clk 0:02:42.8]} 16. Nf3 {[%clk 0:02:39.1]} 16... Rc8
{[%clk 0:02:02.5]} 17. Rad1 {[%clk 0:02:36.7]} 17... Qe8 {[%clk 0:02:00.5]} 18.
Nd4 {[%clk 0:02:17.1]} 18... Rc7 {[%clk 0:01:31]} 19. Nb5 {[%clk 0:02:07.9]}
19... Re7 {[%clk 0:01:28]} 20. Nxa7 {[%clk 0:01:56.9]} 20... d4 {[%clk
0:01:00.8]} 21. Nb5 {[%clk 0:01:22.2]} 21... Qa8 {[%clk 0:00:51.5]} 22. Nxd4
{[%clk 0:01:04.3]} 22... Bxg2 {[%clk 0:00:44.9]} 23. f3 {[%clk 0:01:03.8]} 23...
Bh3 {[%clk 0:00:44.4]} 24. Qe4 {[%clk 0:00:58.4]} 24... f5 {[%clk 0:00:26.6]}
25. exf6 {[%clk 0:00:39.1]} 25... Qxe4 {[%clk 0:00:26.6]} 26. Rxe4 {[%clk
0:00:31.5]} 26... Rxf6 {[%clk 0:00:13.7]} 27. Bc4 {[%clk 0:00:20.1]} 27... Kf8
{[%clk 0:00:03.5]} 28. Kf2 {[%clk 0:00:14.1]} 28... e5 {[%clk 0:00:04.4]} 29.
Nb5 {[%clk 0:00:10.2]} 29... Bf4 {[%clk 0:00:04.9]} 30. Rd8+ {[%clk 0:00:10]}
30... Re8 {[%clk 0:00:06.3]} 31. Rxe8+ {[%clk 0:00:09.7]} 31... Kxe8 {[%clk
0:00:08.2]} 32. a4 {[%clk 0:00:07.1]} 32... Bxh2 {[%clk 0:00:08.9]} 33. Rh4
{[%clk 0:00:06.5]} 33... Rh6 {[%clk 0:00:05.3]} 34. Rxh6 {[%clk 0:00:07.5]}
34... gxh6 {[%clk 0:00:07.2]} 35. Nd6+ {[%clk 0:00:05.3]} 35... Kd7 {[%clk
0:00:05.5]} 36. Ne4 {[%clk 0:00:05.8]} 36... Bf4 {[%clk 0:00:07]} 37. b4 {[%clk
0:00:05.3]} 37... Kc7 {[%clk 0:00:06.3]} 38. a5 {[%clk 0:00:04.4]} 38... Bf5
{[%clk 0:00:06.4]} 39. Nf6 {[%clk 0:00:03.8]} 39... bxa5 {[%clk 0:00:06.1]} 40.
Nd5+ {[%clk 0:00:02.8]} 40... Kb7 {[%clk 0:00:06.1]} 41. Nxf4 {[%clk 0:00:02.8]}
41... exf4 {[%clk 0:00:08]} 42. bxa5 {[%clk 0:00:03.8]} 42... h5 {[%clk
0:00:05.6]} 43. Kg2 {[%clk 0:00:02.8]} 43... h4 {[%clk 0:00:06.3]} 44. Kh2
{[%clk 0:00:03]} 44... h6 {[%clk 0:00:07.3]} 45. Bf1 {[%clk 0:00:03.2]} 45...
Kc6 {[%clk 0:00:05.3]} 0-1